fUST/lending_fUST_20241228
["ID","MTS","AMOUNT","RATE_DAILY","PERIOD"]
[346898227,1735349439949,-500.0,0.000101,2]
[346898228,1735349439959,-500.0,0.000101,2]
[346898229,1735349439968,-500.0,0.000101,2]
[346898230,1735349439977,-500.0,0.000101,2]
[346898231,1735349439987,-500.0,0.000101,2]
[346898232,1735349439996,-500.0,0.000101,2]
[346898233,1735349440005,-500.0,0.000101,2]
[346898234,1735349440015,-316.67364205,0.000101,2]
[346898235,1735349440025,-500.0,0.000101,2]
[346898236,1735349440035,-353.35371795,0.000101,2]
[346898237,1735349440045,-500.0,0.000101,2]
[346898238,1735349440054,-500.0,0.000101,2]
[346898239,1735349440064,-500.0,0.000101,2]
[346898240,1735349440075,-490.36271778,0.000101,2]
[346898241,1735349440086,-500.0,0.00010101,2]
[346898242,1735349440095,-500.0,0.00010101,2]
[346898243,1735349440105,-500.0,0.00010101,2]
[346898244,1735349440115,-500.0,0.00010101,2]
[346898245,1735349440124,-500.0,0.00010101,2]
[346898246,1735349440134,-315.29621727,0.00010101,2]
[346898247,1735349440143,-500.0,0.00010101,2]
[346898248,1735349440154,-500.0,0.00010101,2]
[346898249,1735349440164,-500.0,0.00010101,2]
[346898250,1735349440174,-500.0,0.00010101,2]
[346898251,1735349440184,-500.0,0.00010101,2]
[346898252,1735349440194,-500.0,0.00010101,2]
[346898253,1735349440205,-500.0,0.00010101,2]
[346898254,1735349440214,-500.0,0.00010101,2]
[346898255,1735349440225,-500.0,0.00010101,2]
[346898256,1735349440235,-541.71557567,0.00010101,2]
[346898257,1735349440245,-3236.69,0.00010101,2]
[346898258,1735349440254,-500.0,0.00010101,2]
[346898259,1735349440264,-509.69,0.00010101,2]
[346898260,1735349440273,-500.0,0.00010101,2]
[346898261,1735349440284,-500.0,0.00010101,2]
[346898262,1735349440295,-500.0,0.00010101,2]
[346898263,1735349440306,-500.0,0.00010101,2]
[346898264,1735349440315,-500.0,0.00010101,2]
[346898265,1735349440325,-500.0,0.00010102,2]
[346898266,1735349440337,-500.0,0.00010102,2]
[346898267,1735349440347,-500.0,0.00010102,2]
[346898268,1735349440357,-500.0,0.0001027,2]
[346898269,1735349440367,-500.0,0.0001027,2]
[346898270,1735349440376,-500.0,0.0001027,2]
[346898271,1735349440388,-500.0,0.0001027,2]
[346898272,1735349440398,-1062.65,0.0001027,2]
[346898273,1735349440408,-1725.99,0.00010272,2]
[346898274,1735349440418,-584.52,0.00010374,2]
[346898275,1735349440429,-500.0,0.00010374,2]
[346898276,1735349440450,-500.0,0.00010374,2]
[346898277,1735349440466,-500.0,0.00010374,2]
[346898279,1735349440476,-500.0,0.00010374,2]
[346898280,1735349440486,-500.0,0.00010374,2]
[346898281,1735349440495,-500.0,0.00010374,2]
[346898282,1735349440505,-500.0,0.00010374,2]
[346898283,1735349440515,-500.0,0.00010374,2]
[346898284,1735349440524,-500.0,0.00010374,2]
[346898285,1735349440534,-500.0,0.00010374,2]
[346898286,1735349440544,-500.0,0.00010374,2]
[346898287,1735349440554,-500.0,0.00010374,2]
[346898288,1735349440564,-500.0,0.00010375,2]
[346898289,1735349440574,-500.0,0.00010375,2]
[346898290,1735349440584,-500.0,0.00010375,2]
[346898291,1735349440594,-317.65208545,0.00010375,2]
[346898292,1735349440604,-500.0,0.00010375,2]
[346898294,1735349440613,-500.0,0.00010375,2]
[346898296,1735349440623,-500.0,0.00010375,2]
[346898298,1735349440632,-500.0,0.00010375,2]
[346898300,1735349440642,-500.0,0.00010375,2]
[346898302,1735349440652,-500.0,0.00010375,2]
[346898303,1735349440661,-500.0,0.00010375,2]
[346898304,1735349440671,-500.0,0.00010375,2]
[346898305,1735349440680,-3236.69,0.00010375,2]
[346898306,1735349440690,-500.0,0.00010375,2]
[346898307,1735349440703,-500.0,0.00010375,2]
[346898308,1735349440716,-500.0,0.00010375,2]
[346898309,1735349440726,-500.0,0.00010375,2]
[346898310,1735349440736,-500.0,0.00010375,2]
[346898312,1735349440746,-500.0,0.00010375,2]
[346898314,1735349440756,-268.0129005,0.00010376,2]
[346898315,1735349440766,-389.06920518,0.00010376,2]
[346898316,1735349440776,-500.0,0.00010376,2]
[346898317,1735349440785,-500.0,0.00010544,2]
[346898318,1735349440795,-500.0,0.00010544,2]
[346898319,1735349440804,-500.0,0.00010544,2]
[346898320,1735349440814,-1062.65,0.00010544,2]
[346898321,1735349440824,-1725.99,0.00010546,2]
[346898322,1735349440835,-584.52,0.00010648,2]
[346898323,1735349440845,-500.0,0.00010648,2]
[346898324,1735349440855,-500.0,0.00010648,2]
[346898325,1735349440864,-490.0,0.00010648,2]
[346898326,1735349440874,-500.0,0.00010648,2]
[346898327,1735349440883,-500.0,0.00010648,2]
[346898328,1735349440893,-500.0,0.00010648,2]
[346898329,1735349440903,-500.0,0.00010648,2]
[346898330,1735349440912,-500.0,0.00010648,2]
[346898331,1735349440921,-500.0,0.00010648,2]
[346898332,1735349440931,-500.0,0.00010648,2]
[346898333,1735349440941,-500.0,0.00010648,2]
[346898334,1735349440950,-500.0,0.00010648,2]
[346898335,1735349440959,-500.0,0.00010649,2]
[346898336,1735349440970,-500.0,0.00010649,2]
[346898337,1735349440980,-500.0,0.00010649,2]
[346898338,1735349440989,-500.0,0.00010649,2]
[346898339,1735349440998,-500.0,0.00010649,2]
[346898340,1735349441007,-500.0,0.00010649,2]
[346898341,1735349441017,-500.0,0.00010649,2]
[346898342,1735349441027,-500.0,0.00010649,2]
[346898343,1735349441037,-500.0,0.00010649,2]
[346898344,1735349441046,-500.0,0.00010649,2]
[346898345,1735349441055,-500.0,0.00010649,2]
[346898346,1735349441065,-3236.69,0.00010649,2]
[346898347,1735349441074,-500.0,0.00010649,2]
[346898348,1735349441085,-263.64,0.00010649,2]
[346898349,1735349441094,-500.0,0.00010649,2]
[346898350,1735349441104,-500.0,0.00010649,2]
[346898351,1735349441113,-500.0,0.00010649,2]
[346898352,1735349441123,-500.0,0.00010649,2]
[346898353,1735349441132,-500.0,0.0001077,2]
[346898354,1735349441141,-500.0,0.0001077,2]
[346898355,1735349441151,-420.0,0.00010808,2]
[346898356,1735349441160,-365.95,0.00010818,2]
[346898357,1735349441170,-296.05,0.00010818,2]
[346898358,1735349441179,-500.0,0.00010818,2]
[346898359,1735349441187,-1062.65,0.00010818,2]
[346898360,1735349441197,-724.61,0.00010819,2]
[346898361,1735349441207,-500.0,0.00010819,2]
[346898362,1735349441217,-518.12536605,0.00010819,2]
[346898363,1735349441226,-1725.99,0.0001082,2]
[346898364,1735349441236,-264.40674893,0.00010824,2]
[346898365,1735349441245,-500.0,0.00010847,2]
[346898366,1735349441255,-1581.10788155,0.00010855,2]
[346898367,1735349441264,-584.52,0.00010922,2]
[346898368,1735349441274,-500.0,0.00010922,2]
[346898369,1735349441283,-500.0,0.00010922,2]
[346898370,1735349441293,-500.0,0.00010922,2]
[346898371,1735349441302,-500.0,0.00010922,2]
[346898372,1735349441311,-500.0,0.00010922,2]
[346898373,1735349441321,-500.0,0.00010922,2]
[346898374,1735349441332,-500.0,0.00010922,2]
[346898375,1735349441341,-500.0,0.00010922,2]
[346898376,1735349441351,-500.0,0.00010922,2]
[346898377,1735349441360,-500.0,0.00010922,2]
[346898378,1735349441369,-500.0,0.00010922,2]
[346898379,1735349441379,-271.34,0.00010923,2]
[346898380,1735349441392,-500.0,0.00010923,2]
[346898381,1735349441401,-500.0,0.00010923,2]
[346898382,1735349441411,-500.0,0.00010923,2]
[346898383,1735349441420,-500.0,0.00010923,2]
[346898384,1735349441431,-315.58191737,0.00010923,2]
[346898385,1735349441440,-500.0,0.00010923,2]
[346898386,1735349441454,-500.0,0.00010923,2]
[346898387,1735349441465,-500.0,0.00010923,2]
[346898388,1735349441475,-500.0,0.00010923,2]
[346898389,1735349441484,-500.0,0.00010923,2]
[346898390,1735349441494,-3236.69,0.00010923,2]
[346898391,1735349441503,-500.0,0.00010923,2]
[346898392,1735349441595,-500.0,0.00010923,2]
[346898393,1735349441606,-15723.3257002,0.00010959,2]
[346898394,1735349441615,-2192.50528025,0.00010974,2]
[346898395,1735349441625,-500.0,0.00010981,2]
[346898396,1735349441635,-10000.0,0.00011,2]
[346898397,1735349441645,-500.0,0.00011044,2]
[346898398,1735349441654,-500.0,0.00011044,2]
[346898399,1735349441663,-500.0,0.00011049,2]
[346898400,1735349441673,-2516.82467323,0.00011062,2]
[346898401,1735349441683,-8978.07032967,0.00011075,2]
[346898402,1735349441693,-500.0,0.00011092,2]
[346898403,1735349441703,-1062.65,0.00011092,2]
[346898404,1735349441713,-724.61,0.00011093,2]
[346898405,1735349441722,-500.0,0.00011093,2]
[346898406,1735349441732,-1725.99,0.00011094,2]
[346898407,1735349441743,-584.52,0.00011196,2]
[346898408,1735349441753,-500.0,0.00011196,2]
[346898409,1735349441763,-500.0,0.00011196,2]
[346898410,1735349441773,-500.0,0.00011196,2]
[346898411,1735349441783,-500.0,0.00011196,2]
[346898412,1735349441792,-500.0,0.00011196,2]
[346898413,1735349441802,-500.0,0.00011196,2]
[346898414,1735349441811,-500.0,0.00011196,2]
[346898415,1735349441820,-500.0,0.00011196,2]
[346898416,1735349441832,-500.0,0.00011196,2]
[346898417,1735349441841,-520.8898866,0.00011196,2]
[346898418,1735349441851,-500.0,0.00011196,2]
[346898419,1735349441861,-500.0,0.00011197,2]
[346898420,1735349441870,-500.0,0.00011197,2]
[346898421,1735349441880,-500.0,0.00011197,2]
[346898422,1735349441890,-500.0,0.00011197,2]
[346898423,1735349441900,-500.0,0.00011197,2]
[346898424,1735349441909,-500.0,0.00011197,2]
[346898425,1735349441919,-3236.69,0.00011197,2]
[346898426,1735349441929,-500.0,0.00011197,2]
[346898427,1735349441939,-500.0,0.00011318,2]
[346898428,1735349441948,-500.0,0.00011318,2]
[346898429,1735349441958,-500.0,0.00011366,2]
[346898430,1735349441967,-1062.65,0.00011366,2]
[346898431,1735349441977,-724.61,0.00011367,2]
[346898432,1735349441986,-500.0,0.00011367,2]
[346898433,1735349441996,-1725.99,0.00011368,2]
[346898434,1735349442005,-264.40674893,0.00011468,2]
[346898435,1735349442015,-584.52,0.0001147,2]
[346898436,1735349442024,-500.0,0.0001147,2]
[346898437,1735349442033,-500.0,0.0001147,2]
[346898438,1735349442043,-500.0,0.0001147,2]
[346898439,1735349442052,-500.0,0.0001147,2]
[346898440,1735349442061,-500.0,0.0001147,2]
[346898441,1735349442070,-500.0,0.0001147,2]
[346898442,1735349442081,-500.0,0.0001147,2]
[346898443,1735349442091,-500.0,0.0001147,2]
[346898444,1735349442100,-500.0,0.0001147,2]
[346898445,1735349442110,-500.0,0.0001147,2]
[346898446,1735349442119,-500.0,0.00011471,2]
[346898447,1735349442128,-500.0,0.00011471,2]
[346898448,1735349442137,-500.0,0.00011471,2]
[346898449,1735349442147,-3236.69,0.00011471,2]
[346898450,1735349442157,-500.0,0.00011471,2]
[346898451,1735349442166,-1000.0,0.00011529,2]
[346898452,1735349442176,-500.0,0.00011563,2]
[346898453,1735349442185,-500.0,0.00011592,2]
[346898454,1735349442195,-500.0,0.00011592,2]
[346898455,1735349442204,-500.0,0.0001164,2]
[346898456,1735349442213,-1062.65,0.0001164,2]
[346898457,1735349442223,-724.61,0.00011641,2]
[346898458,1735349442232,-500.0,0.00011641,2]
[346898459,1735349442242,-1725.99,0.00011642,2]
[346898460,1735349442251,-584.52,0.00011744,2]
[346898461,1735349442261,-500.0,0.00011744,2]
[346898462,1735349442271,-500.0,0.00011744,2]
[346898463,1735349442281,-500.0,0.00011744,2]
[346898464,1735349442290,-500.0,0.00011744,2]
[346898465,1735349442300,-500.0,0.00011744,2]
[346898466,1735349442309,-500.0,0.00011744,2]
[346898467,1735349442319,-500.0,0.00011744,2]
[346898468,1735349442330,-500.0,0.00011744,2]
[346898469,1735349442340,-500.0,0.00011744,2]
[346898470,1735349442349,-500.0,0.00011744,2]
[346898471,1735349442359,-190.46558993,0.00011744,2]
[346898472,1735349442369,-30.56855169,0.00011744,2]
[346898473,1735349442385,-143.47522629,0.00011744,2]
[346898474,1735349442398,-500.0,0.00011745,2]
[346898475,1735349442407,-612.56,0.00011745,2]
[346898476,1735349442417,-500.0,0.00011745,2]
[346898477,1735349442426,-3236.69,0.00011745,2]
[346898478,1735349442437,-500.0,0.00011745,2]
[346898479,1735349442447,-500.0,0.00011866,2]
[346898480,1735349442456,-500.0,0.00011866,2]
[346898481,1735349442467,-587.0,0.00011888,2]
[346898482,1735349442478,-1062.65,0.00011914,2]
[346898483,1735349442487,-724.61,0.00011915,2]
[346898484,1735349442497,-500.0,0.00011915,2]
[346898485,1735349442506,-1725.99,0.00011916,2]
[346898486,1735349442516,-500.0,0.00011973,2]
[346898487,1735349442525,-500.0,0.00011973,2]
[346898488,1735349442535,-17259.26304657,0.00011987,2]
[346898495,1735349444322,-406.13384314,0.00011987,2]
[346898496,1735349444422,-1526.45684526,0.00011987,2]
[346898497,1735349444433,-334.222268,0.00011987,2]
[346898498,1735349444442,-334.222268,0.00011987,2]
[346898499,1735349444451,-151.0,0.00011987,2]
[346898500,1735349444461,-187.593686,0.00011987,2]
[346898501,1735349444470,-187.593686,0.00011987,2]
[346898502,1735349444480,-151.0,0.00011987,2]
[346898503,1735349444489,-187.593686,0.00011987,2]
[346898504,1735349444498,-187.593686,0.00011987,2]
[346898505,1735349444508,-334.222268,0.00011987,2]
[346898506,1735349444517,-334.222268,0.00011987,2]
[346898507,1735349444526,-151.0,0.00011987,2]
[346898508,1735349444535,-151.0,0.00011987,2]
[346898509,1735349444544,-202.479598,0.00011987,2]
[346898510,1735349444555,-202.479598,0.00011987,2]
[346898511,1735349444564,-202.479598,0.00011987,2]
[346898512,1735349444574,-202.479598,0.00011987,2]
[346898513,1735349444584,-151.136789,0.00011987,2]
[346898514,1735349444594,-151.0,0.00011987,2]
[346898515,1735349444603,-151.0,0.00011987,2]
[346898516,1735349444613,-210.02746359,0.00011987,2]
[346898517,1735349444622,-199.213771,0.00011987,2]
[346898518,1735349444632,-151.0,0.00011987,2]
[346898519,1735349444642,-151.0,0.00011987,2]
[346898520,1735349444652,-151.0,0.00011987,2]
[346898521,1735349444662,-151.0,0.00011987,2]
[346898522,1735349444671,-151.0,0.00011987,2]
[346898523,1735349444680,-151.0,0.00011987,2]
[346898524,1735349444690,-151.0,0.00011987,2]
[346898525,1735349444699,-284.377598,0.00011987,2]
[346898526,1735349444709,-151.0,0.00011987,2]
[346898527,1735349444718,-276.760952,0.00011987,2]
[346898528,1735349444728,-151.0,0.00011987,2]
[346898529,1735349444737,-151.0,0.00011987,2]
[346898530,1735349444747,-554.64773,0.00011987,2]
[346898531,1735349444756,-554.64773,0.00011987,2]
[346898532,1735349444765,-554.64773,0.00011987,2]
[346898533,1735349444775,-554.64773,0.00011987,2]
[346898534,1735349444784,-584.52,0.00012018,2]
[346898535,1735349444793,-500.0,0.00012018,2]
[346898536,1735349444803,-546.53320091,0.00012018,2]
[346898537,1735349444812,-500.0,0.00012018,2]
[346898538,1735349444821,-500.0,0.00012018,2]
[346898539,1735349444831,-500.0,0.00012018,2]
[346898540,1735349444841,-500.0,0.00012018,2]
[346898541,1735349444851,-500.0,0.00012018,2]
[346898542,1735349444860,-500.0,0.00012018,2]
[346898543,1735349444870,-500.0,0.00012018,2]
[346898544,1735349444880,-564.01135337,0.00012018,2]
[346898545,1735349444889,-27342.54597245,0.00012019,2]
[346898547,1735349445717,-441.43049051,0.00012019,2]
[346898548,1735349445727,-18878.78577101,0.00012019,2]
[346898549,1735349445739,-838.32731644,0.00012019,2]
[346898558,1735349447094,-8.02271042,0.00012019,2]
[346898563,1735350167094,639.17476904,8.981e-05,2]
[346898564,1735350249289,250.0,8.973e-05,2]
[346898565,1735350349100,-174.13057086,9.063e-05,2]
[346898567,1735350449106,-75.86942914,9.063e-05,2]
[346898568,1735350449131,-500.0,9.07e-05,2]
[346898569,1735350449156,-500.0,9.07e-05,2]
[346898570,1735350449179,-149.82666879,9.07e-05,2]
[346898571,1735350547146,-300.0,9.069e-05,2]
[346898572,1735350547169,-357.98182666,9.07e-05,2]
[346898573,1735350547190,-501.78095324,9.07e-05,2]
[346898574,1735350547212,-500.0,9.07e-05,2]
[346898575,1735350547235,-523.98575256,9.07e-05,2]
[346898576,1735350547255,-501.65189398,9.07e-05,2]
[346898577,1735350547276,-388.44701936,9.07e-05,2]
[346898578,1735350547299,-500.0,9.07e-05,2]
[346898579,1735350547321,-11561.19408096,9.071e-05,2]
[346898580,1735350549093,-500.0,9.07e-05,2]
[346898581,1735350549116,-13338.80591904,9.071e-05,2]
[346898582,1735350549139,-500.0,9.344e-05,2]
[346898583,1735350549161,-500.0,9.344e-05,2]
[346898584,1735350549183,-500.0,9.344e-05,2]
[346898585,1735350549206,-500.0,9.344e-05,2]
[346898586,1735350549227,-500.0,9.344e-05,2]
[346898587,1735350549248,-254.4037968,9.494e-05,2]
[346898588,1735350549270,-500.0,9.618e-05,2]
[346898589,1735350549293,-500.0,9.618e-05,2]
[346898590,1735350549314,-500.0,9.618e-05,2]
[346898591,1735350549337,-115.64601373,9.618e-05,2]
[346898592,1735350551154,-384.35398627,9.618e-05,2]
[346898593,1735350551179,-246.18243537,9.618e-05,2]
[346898594,1735350553103,-253.81756463,9.618e-05,2]
[346898595,1735350553126,-1302.48,9.722e-05,2]
[346898596,1735350553147,-521.63142576,9.826e-05,2]
[346898597,1735350553168,-500.0,9.826e-05,2]
[346898598,1735350553190,-266.88791721,9.827e-05,2]
[346898599,1735350556134,-500.0,9.07e-05,2]
[346898600,1735350556157,-500.0,9.344e-05,2]
[346898601,1735350556180,-406.63437698,9.618e-05,2]
[346898602,1735350565134,-500.0,9.07e-05,2]
[346898603,1735350565155,-480.0,9.344e-05,2]
[346898604,1735350565302,-20.0,9.344e-05,2]
[346898605,1735350566063,500.0,9.07e-05,2]
[346898606,1735350566313,413.99268175,9.344e-05,2]
[346898607,1735350589723,-360.47370747,9.07e-05,2]
[346898663,1735350632347,-139.52629253,9.07e-05,2]
[346898664,1735350632357,-646.38440881,9.07e-05,2]
[346898665,1735350632367,-86.00731825,9.344e-05,2]
[346898666,1735350632376,-500.0,9.344e-05,2]
[346898667,1735350632386,-93.36562302,9.618e-05,2]
[346898668,1735350632395,-500.0,9.618e-05,2]
[346898669,1735350632404,-500.0,9.618e-05,2]
[346898670,1735350632414,-500.0,9.618e-05,2]
[346898671,1735350632423,-233.11208279,9.827e-05,2]
[346898672,1735350632432,-512.74741035,9.827e-05,2]
[346898673,1735350632441,-300.0,9.891e-05,2]
[346898675,1735350632451,-500.0,9.892e-05,2]
[346898677,1735350632460,-500.0,9.892e-05,2]
[346898679,1735350632469,-500.0,9.892e-05,2]
[346898681,1735350632478,-500.0,9.892e-05,2]
[346898682,1735350632488,-230.53536674,9.892e-05,2]
[346898684,1735350632497,-528.02408487,9.892e-05,2]
[346898686,1735350632506,-500.0,9.892e-05,2]
[346898688,1735350632516,-500.0,9.892e-05,2]
[346898690,1735350632525,-1302.48,9.996e-05,2]
[346898692,1735350632534,-2381.27,0.00010098,2]
[346898694,1735350632543,-514.48164625,0.00010099,2]
[346898696,1735350632554,-500.0,0.00010099,2]
[346898698,1735350632563,-518.49954148,0.00010099,2]
[346898700,1735350632574,-389.23551334,0.00010099,2]
[346898702,1735350632583,-517.86561097,0.00010099,2]
[346898704,1735350632592,-225.63367316,0.00010099,2]
[346898706,1735350632601,-500.0,0.00010099,2]
[346898708,1735350632610,-500.0,0.00010099,2]
[346898709,1735350632619,-221.51233626,0.00010099,2]
[346898710,1735350632629,-500.0,0.00010099,2]
[346898711,1735350632638,-500.0,0.00010101,2]
[346898712,1735350632647,-500.0,0.00010166,2]
[346898713,1735350632657,-500.0,0.00010166,2]
[346898714,1735350632667,-500.0,0.00010166,2]
[346898715,1735350632677,-500.0,0.00010166,2]
[346898716,1735350632687,-500.0,0.00010166,2]
[346898717,1735350632697,-400.92860191,0.00010166,2]
[346898718,1735350632707,-1302.48,0.0001027,2]
[346898719,1735350632717,-2381.27,0.00010372,2]
[346898720,1735350632727,-256.98391685,0.00010373,2]
[346898721,1735350632737,-515.15653828,0.00010373,2]
[346898722,1735350632750,-200.13457177,0.00010373,2]
[346898723,1735350632760,-301.72792821,0.00010373,2]
[346898724,1735350632769,-500.0,0.00010375,2]
[346898725,1735350632779,-500.0,0.0001044,2]
[346898726,1735350632789,-500.0,0.0001044,2]
[346898727,1735350632798,-500.0,0.0001044,2]
[346898728,1735350632807,-500.0,0.0001044,2]
[346898729,1735350632817,-500.0,0.0001044,2]
[346898730,1735350632826,-1302.48,0.00010544,2]
[346898731,1735350632836,-2381.27,0.00010646,2]
[346898732,1735350632846,-500.0,0.00010649,2]
[346898733,1735350632855,-221.15141309,0.00010713,2]
[346898734,1735350632864,-500.0,0.00010714,2]
[346898735,1735350632876,-500.0,0.00010714,2]
[346898736,1735350632885,-500.0,0.00010714,2]
[346898737,1735350632895,-500.0,0.00010714,2]
[346898738,1735350632906,-539.27871276,0.00010714,2]
[346898739,1735350632915,-1302.48,0.00010818,2]
[346898740,1735350632924,-664.16,0.00010819,2]
[346898741,1735350632933,-500.0,0.00010819,2]
[346898742,1735350632944,-504.12354606,0.00010819,2]
[346898743,1735350632953,-507.57868752,0.00010819,2]
[346898744,1735350632962,-420.0,0.0001088,2]
[346898745,1735350632971,-2381.27,0.0001092,2]
[346898746,1735350632981,-376.31876704,0.00010923,2]
[346898747,1735350632990,-488.2454982,0.00010959,2]
[346898748,1735350632999,-500.0,0.00010988,2]
[346898749,1735350633008,-386.02357916,0.00010988,2]
[346898750,1735350633018,-500.0,0.00010988,2]
[346898751,1735350633027,-500.0,0.00010988,2]
[346898752,1735350633036,-1302.48,0.00011092,2]
[346898753,1735350633046,-664.16,0.00011093,2]
[346898754,1735350633055,-255.53103506,0.00011093,2]
[346898755,1735350633064,-2381.27,0.00011194,2]
[346898756,1735350633074,-500.0,0.00011262,2]
[346898757,1735350633083,-500.0,0.00011262,2]
[346898758,1735350633092,-500.0,0.00011262,2]
[346898759,1735350633101,-500.70284072,0.00011318,2]
[346898760,1735350633111,-595.77683008,0.00011318,2]
[346898761,1735350633120,-1302.48,0.00011366,2]
[346898762,1735350633129,-664.16,0.00011367,2]
[346898763,1735350633138,-2381.27,0.00011468,2]
[346898764,1735350633148,-500.0,0.000115,2]
[346898765,1735350633157,-500.0,0.00011536,2]
[346898766,1735350633166,-500.0,0.00011536,2]
[346898767,1735350633176,-631.02570159,0.00011536,2]
[346898768,1735350633185,-501.52952725,0.00011624,2]
[346898769,1735350633195,-502.94648202,0.00011624,2]
[346898770,1735350633205,-1302.48,0.0001164,2]
[346898771,1735350633215,-664.16,0.00011641,2]
[346898772,1735350633224,-2381.27,0.00011742,2]
[346898773,1735350633235,-500.0,0.0001181,2]
[346898774,1735350633244,-500.0,0.0001181,2]
[346898775,1735350633254,-500.0,0.0001181,2]
[346898776,1735350633263,-500.64158974,0.00011839,2]
[346898777,1735350633272,-1302.48,0.00011914,2]
[346898778,1735350633282,-664.16,0.00011915,2]
[346898779,1735350633291,-496.0,0.00011968,2]
[346898780,1735350633301,-2381.27,0.00012016,2]
[346898781,1735350633311,-1003.66120099,0.00012048,2]
[346898782,1735350633320,-500.0,0.00012084,2]
[346898783,1735350633329,-500.0,0.00012084,2]
[346898784,1735350633338,-1302.48,0.00012188,2]
[346898785,1735350633348,-664.16,0.00012189,2]
[346898786,1735350633357,-2381.27,0.0001229,2]
[346898787,1735350633367,-500.0,0.00012358,2]
[346898788,1735350633377,-500.0,0.00012358,2]
[346898789,1735350633387,-1302.48,0.00012462,2]
[346898790,1735350633397,-664.16,0.00012463,2]
[346898791,1735350633407,-2381.27,0.00012564,2]
[346898792,1735350633416,-500.0,0.00012632,2]
[346898793,1735350633425,-500.0,0.00012632,2]
[346898794,1735350633434,-1302.48,0.00012736,2]
[346898795,1735350633443,-664.16,0.00012737,2]
[346898796,1735350633453,-194.50387981,0.00012806,2]
[346898797,1735350633463,-2381.27,0.00012838,2]
[346898798,1735350633472,-500.0,0.00012906,2]
[346898799,1735350633482,-210.24194093,0.00012906,2]
[346898800,1735350633491,-1302.48,0.0001301,2]
[346898801,1735350633501,-664.16,0.00013011,2]
[346898802,1735350633511,-2381.27,0.00013112,2]
[346898803,1735350633520,-500.0,0.0001318,2]
[346898804,1735350633529,-16950.4104551,0.00013212,2]
[346898805,1735350633538,-1302.48,0.00013284,2]
[346898806,1735350633548,-5296.35801193,0.00013284,2]
[346898807,1735350633557,-664.16,0.00013285,2]
[346898808,1735350633567,-2381.27,0.00013386,2]
[346898809,1735350633576,-500.0,0.00013454,2]
[346898810,1735350633585,-10000.0,0.000135,2]
[346898811,1735350633595,-1302.48,0.00013558,2]
[346898812,1735350633605,-664.16,0.00013559,2]
[346898813,1735350633614,-878.521,0.00013561,2]
[346898814,1735350633624,-187.41944255,0.00013561,2]
[346898815,1735350633634,-779.546476,0.00013562,2]
[346898816,1735350633644,-2381.27,0.0001366,2]
[346898817,1735350633653,-211.24464794,0.00013698,2]
[346898818,1735350633663,-553.739761,0.00013699,2]
[346898819,1735350633672,-500.0,0.00013699,2]
[346898820,1735350633682,-451.84208347,0.00013699,2]
[346898821,1735350633691,-500.0,0.00013699,2]
[346898822,1735350633700,-500.0,0.00013699,2]
[346898823,1735350633713,-500.0,0.00013699,2]
[346898824,1735350633723,-500.0,0.00013699,2]
[346898825,1735350633732,-500.0,0.00013699,2]
[346898826,1735350633744,-500.0,0.00013699,2]